fUSD/lending_fUSD_20250618
["ID","MTS","AMOUNT","RATE_DAILY","PERIOD"]
[366442179,1750257058510,-750.67,0.0001726,2]
[366442180,1750257058520,-796.54,0.0001726,2]
[366442181,1750257058530,-1113.1,0.0001726,2]
[366442182,1750257058540,-733.94,0.0001726,2]
[366442183,1750257058551,-202.11632795,0.0001726,2]
[366442184,1750257058562,-490.0,0.0001726,2]
[366442185,1750257058573,-1298.39,0.0001726,2]
[366442186,1750257058584,-490.0,0.0001726,2]
[366442187,1750257058594,-2524.38,0.0001726,2]
[366442188,1750257058603,-624.51,0.0001726,2]
[366442189,1750257058613,-843.28,0.0001726,2]
[366442190,1750257058623,-490.0,0.0001726,2]
[366442191,1750257058632,-998.1,0.0001726,2]
[366442192,1750257058642,-1474.63,0.0001726,2]
[366442193,1750257058762,-741.38,0.0001726,2]
[366442194,1750257058779,-490.0,0.0001726,2]
[366442195,1750257058789,-490.0,0.0001726,2]
[366442196,1750257058799,-490.0,0.0001726,2]
[366442197,1750257058809,-793.14,0.0001726,2]
[366442198,1750257058818,-490.0,0.0001726,2]
[366442199,1750257058828,-614.44,0.0001726,2]
[366442200,1750257058838,-646.95,0.0001726,2]
[366442201,1750257058847,-2116.32,0.0001726,2]
[366442202,1750257058858,-600.42,0.0001726,2]
[366442203,1750257058868,-562.77,0.0001726,2]
[366442204,1750257058879,-490.0,0.0001726,2]
[366442205,1750257058889,-1069.11,0.0001726,2]
[366442206,1750257058899,-513.47,0.0001726,2]
[366442207,1750257058909,-490.0,0.0001726,2]
[366442208,1750257058919,-567.01,0.0001726,2]
[366442209,1750257058930,-1198.12,0.0001726,2]
[366442210,1750257058942,-490.0,0.0001726,2]
[366442211,1750257058953,-632.91,0.0001726,2]
[366442212,1750257058963,-1129.76,0.0001726,2]
[366442213,1750257058974,-1414.45,0.0001726,2]
[366442214,1750257058984,-490.0,0.0001726,2]
[366442215,1750257058994,-490.0,0.0001726,2]
[366442216,1750257059007,-205.0,0.00017278,5]
[366442217,1750257059017,-12069.09059169,0.000173,2]
[366442218,1750257059027,-5800.0,0.00017304,2]
[366442219,1750257059037,-10626.1494076,0.00017306,2]
[366442220,1750257059047,-1001.62478866,0.00017307,2]
[366442221,1750257059057,-500.0,0.00017307,2]
[366442222,1750257059067,-1000.0,0.00017307,2]
[366442223,1750257059078,-5800.0,0.00017313,2]
[366442224,1750257059088,-5800.0,0.00017321,2]
[366442225,1750257059099,-5800.0,0.00017321,2]
[366442226,1750257059109,-1861.0,0.00017326,2]
[366442227,1750257059120,-513.0,0.00017336,2]
[366442228,1750257059131,-190.0,0.00017339,2]
[366442229,1750257059141,-10626.1494076,0.00017379,2]
[366442230,1750257059151,-7000.0,0.000174,2]
[366442231,1750257059161,-858.36893487,0.000174,2]
[366442232,1750257059172,-368.4335177,0.00017407,2]
[366442233,1750257059183,-1514.12465525,0.00017424,2]
[366442234,1750257059193,-490.0,0.00017424,2]
[366442235,1750257059203,-686.14,0.00017424,2]
[366442236,1750257059213,-551.49,0.00017424,2]
[366442237,1750257059223,-777.25,0.00017424,2]
[366442238,1750257059233,-490.0,0.00017424,2]
[366442239,1750257059243,-518.54,0.00017424,2]
[366442240,1750257059257,-560.09,0.00017424,2]
[366442241,1750257059267,-246.14440529,0.00017424,2]
[366442242,1750257059277,-285.76,0.00017424,2]
[366442243,1750257059287,-490.0,0.00017424,2]
[366442244,1750257059298,-602.32612239,0.00017424,2]
[366442245,1750257059309,-490.0,0.00017424,2]
[366442246,1750257059319,-490.0,0.00017424,2]
[366442247,1750257059330,-300.0,0.00017424,2]
[366442248,1750257059340,-490.0,0.00017424,2]
[366442249,1750257059350,-490.0,0.00017424,2]
[366442250,1750257059360,-490.0,0.00017424,2]
[366442251,1750257059370,-781.86,0.00017424,2]
[366442252,1750257059380,-492.72,0.00017424,2]
[366442253,1750257059390,-490.0,0.00017424,2]
[366442254,1750257059401,-519.56,0.00017424,2]
[366442255,1750257059412,-523.43,0.00017424,2]
[366442256,1750257059424,-490.0,0.00017424,2]
[366442257,1750257059435,-990.9,0.00017424,2]
[366442258,1750257059445,-490.0,0.00017424,2]
[366442259,1750257059455,-490.0,0.00017424,2]
[366442260,1750257059465,-490.0,0.00017424,2]
[366442261,1750257059476,-538.02,0.00017424,2]
[366442262,1750257059486,-763.15,0.00017424,2]
[366442263,1750257059497,-490.0,0.00017424,2]
[366442264,1750257059510,-1338.65,0.00017424,2]
[366442265,1750257059521,-613.29,0.00017424,2]
[366442266,1750257059530,-490.0,0.00017424,2]
[366442267,1750257059541,-743.18,0.00017424,2]
[366442268,1750257059551,-490.0,0.00017424,2]
[366442269,1750257059561,-490.0,0.00017424,2]
[366442270,1750257059572,-490.0,0.00017424,2]
[366442271,1750257059582,-490.0,0.00017424,2]
[366442272,1750257059593,-706.15,0.00017424,2]
[366442273,1750257059603,-490.0,0.00017424,2]
[366442274,1750257059614,-490.0,0.00017424,2]
[366442275,1750257059625,-551.76,0.00017424,2]
[366442276,1750257059636,-490.0,0.00017424,2]
[366442277,1750257059646,-557.39706358,0.00017424,2]
[366442278,1750257059656,-546.08,0.00017424,2]
[366442279,1750257059666,-490.0,0.00017424,2]
[366442280,1750257059676,-658.72,0.00017424,2]
[366442281,1750257059686,-490.0,0.00017424,2]
[366442282,1750257059696,-490.0,0.00017424,2]
[366442283,1750257059706,-490.0,0.00017424,2]
[366442284,1750257059716,-490.0,0.00017424,2]
[366442285,1750257059726,-533.74,0.00017424,2]
[366442286,1750257059735,-490.0,0.00017424,2]
[366442287,1750257059746,-490.0,0.00017424,2]
[366442288,1750257059760,-490.0,0.00017424,2]
[366442289,1750257059770,-490.0,0.00017424,2]
[366442290,1750257059781,-490.0,0.00017424,2]
[366442291,1750257059792,-871.98,0.00017424,2]
[366442292,1750257059801,-490.0,0.00017424,2]
[366442293,1750257059813,-490.0,0.00017424,2]
[366442294,1750257059824,-490.0,0.00017424,2]
[366442295,1750257059834,-584.75,0.00017424,2]
[366442296,1750257059845,-589.43,0.00017424,2]
[366442297,1750257059856,-490.0,0.00017424,2]
[366442298,1750257059867,-908.44,0.00017424,2]
[366442299,1750257059878,-490.13,0.00017424,2]
[366442300,1750257059889,-490.0,0.00017424,2]
[366442301,1750257059900,-490.0,0.00017424,2]
[366442302,1750257059910,-490.0,0.00017424,2]
[366442303,1750257059920,-490.0,0.00017424,2]
[366442304,1750257059930,-618.23157197,0.00017424,2]
[366442305,1750257059940,-670.85,0.00017424,2]
[366442306,1750257059950,-490.0,0.00017424,2]
[366442307,1750257059961,-594.25,0.00017424,2]
[366442308,1750257059971,-490.0,0.00017424,2]
[366442309,1750257059981,-674.18,0.00017424,2]
[366442310,1750257059991,-562.72,0.00017424,2]
[366442311,1750257060001,-581.59,0.00017424,2]
[366442312,1750257060015,-571.73,0.00017424,2]
[366442313,1750257060025,-490.0,0.00017424,2]
[366442314,1750257060036,-512.65,0.00017424,2]
[366442315,1750257060047,-578.22,0.00017424,2]
[366442316,1750257060058,-502.22,0.00017424,2]
[366442317,1750257060070,-535.71,0.00017424,2]
[366442318,1750257060081,-490.0,0.00017424,2]
[366442319,1750257060092,-528.62,0.00017424,2]
[366442320,1750257060102,-490.0,0.00017424,2]
[366442321,1750257060113,-761.74,0.00017424,2]
[366442322,1750257060125,-490.0,0.00017424,2]
[366442323,1750257060135,-549.14,0.00017424,2]
[366442324,1750257060145,-711.34,0.00017424,2]
[366442325,1750257060155,-1157.46,0.00017424,2]
[366442326,1750257060166,-490.0,0.00017424,2]
[366442327,1750257060176,-1138.45,0.00017424,2]
[366442328,1750257060186,-574.18,0.00017424,2]
[366442329,1750257060196,-490.0,0.00017424,2]
[366442330,1750257060206,-490.0,0.00017424,2]
[366442331,1750257060216,-697.93,0.00017424,2]
[366442332,1750257060226,-1306.71,0.00017424,2]
[366442333,1750257060236,-490.0,0.00017424,2]
[366442334,1750257060246,-513.85,0.00017424,2]
[366442335,1750257060260,-490.0,0.00017424,2]
[366442336,1750257060271,-1490.15,0.00017424,2]
[366442337,1750257060282,-1470.31,0.00017424,2]
[366442338,1750257060293,-714.69,0.00017424,2]
[366442339,1750257060303,-650.64,0.00017424,2]
[366442340,1750257060314,-1055.17,0.00017424,2]
[366442341,1750257060324,-490.0,0.00017424,2]
[366442342,1750257060335,-938.74,0.00017424,2]
[366442343,1750257060345,-746.58,0.00017424,2]
[366442344,1750257060356,-752.12,0.00017424,2]
[366442345,1750257060366,-615.79,0.00017424,2]
[366442346,1750257060377,-1184.09,0.00017424,2]
[366442347,1750257060387,-490.0,0.00017424,2]
[366442348,1750257060397,-595.15,0.00017424,2]
[366442349,1750257060409,-546.89,0.00017424,2]
[366442350,1750257060423,-892.68,0.00017424,2]
[366442351,1750257060434,-662.92,0.00017424,2]
[366442352,1750257060444,-490.0,0.00017424,2]
[366442353,1750257060454,-784.12,0.00017424,2]
[366442354,1750257060465,-1398.48,0.00017424,2]
[366442355,1750257060475,-1387.74,0.00017424,2]
[366442356,1750257060485,-1002.15,0.00017424,2]
[366442357,1750257060497,-562.5,0.00017424,2]
[366442358,1750257060510,-490.0,0.00017424,2]
[366442359,1750257060521,-1114.11,0.00017424,2]
[366442360,1750257060531,-1158.83,0.00017424,2]
[366442361,1750257060541,-490.0,0.00017424,2]
[366442362,1750257060552,-1123.05,0.00017424,2]
[366442363,1750257060562,-490.0,0.00017424,2]
[366442364,1750257060573,-585.81,0.00017424,2]
[366442365,1750257060584,-512.44,0.00017424,2]
[366442366,1750257060594,-529.92,0.00017424,2]
[366442367,1750257060603,-619.01,0.00017424,2]
[366442368,1750257060614,-490.0,0.00017424,2]
[366442369,1750257060625,-511.25,0.00017424,2]
[366442370,1750257060635,-490.0,0.00017424,2]
[366442371,1750257060645,-690.3,0.00017424,2]
[366442372,1750257060656,-1117.61,0.00017424,2]
[366442373,1750257060666,-1128.49,0.00017424,2]
[366442374,1750257060676,-490.0,0.00017424,2]
[366442375,1750257060687,-490.0,0.00017424,2]
[366442376,1750257060698,-490.0,0.00017424,2]
[366442377,1750257060710,-1499.37,0.00017424,2]
[366442378,1750257060720,-705.99,0.00017424,2]
[366442379,1750257060730,-1251.05,0.00017424,2]
[366442380,1750257060741,-770.06,0.00017424,2]
[366442381,1750257060750,-490.0,0.00017424,2]
[366442382,1750257060762,-1149.1,0.00017424,2]
[366442383,1750257060773,-607.32,0.00017424,2]
[366442384,1750257060783,-697.95,0.00017424,2]
[366442385,1750257060792,-490.0,0.00017424,2]
[366442386,1750257060803,-951.45,0.00017424,2]
[366442387,1750257060814,-1246.97,0.00017424,2]
[366442388,1750257060824,-490.0,0.00017424,2]
[366442389,1750257060835,-490.0,0.00017424,2]
[366442390,1750257060846,-704.38,0.00017424,2]
[366442391,1750257060857,-718.12,0.00017424,2]
[366442392,1750257060867,-783.15,0.00017424,2]
[366442393,1750257060878,-897.47,0.00017424,2]
[366442394,1750257060888,-490.0,0.00017424,2]
[366442395,1750257060898,-655.08,0.00017424,2]
[366442396,1750257060909,-801.94,0.00017424,2]
[366442397,1750257060920,-1547.99,0.00017424,2]
[366442398,1750257060930,-961.74,0.00017424,2]
[366442399,1750257061235,-492.13,0.00017424,2]
[366442400,1750257061256,-490.0,0.00017424,2]
[366442401,1750257061266,-1810.08,0.00017424,2]
[366442402,1750257061277,-609.2,0.00017424,2]
[366442403,1750257061288,-602.08,0.00017424,2]
[366442404,1750257061299,-683.17,0.00017424,2]
[366442405,1750257061309,-750.67,0.00017424,2]
[366442406,1750257061319,-796.54,0.00017424,2]
[366442407,1750257061330,-1113.1,0.00017424,2]
[366442408,1750257061341,-733.94,0.00017424,2]
[366442409,1750257061351,-490.0,0.00017424,2]
[366442410,1750257061361,-1298.39,0.00017424,2]
[366442411,1750257061371,-490.0,0.00017424,2]
[366442412,1750257061380,-2524.38,0.00017424,2]
[366442413,1750257061390,-624.51,0.00017424,2]
[366442414,1750257061400,-843.28,0.00017424,2]
[366442415,1750257061411,-490.0,0.00017424,2]
[366442416,1750257061425,-998.1,0.00017424,2]
[366442417,1750257061435,-1474.63,0.00017424,2]
[366442418,1750257061444,-741.38,0.00017424,2]
[366442419,1750257061455,-490.0,0.00017424,2]
[366442420,1750257061465,-490.0,0.00017424,2]
[366442421,1750257061475,-490.0,0.00017424,2]
[366442422,1750257061485,-793.14,0.00017424,2]
[366442423,1750257061497,-614.44,0.00017424,2]
[366442424,1750257061511,-490.0,0.00017424,2]
[366442425,1750257061522,-646.95,0.00017424,2]
[366442426,1750257061532,-2116.32,0.00017424,2]
[366442427,1750257061542,-600.42,0.00017424,2]
[366442428,1750257061552,-562.77,0.00017424,2]
[366442429,1750257061562,-490.0,0.00017424,2]
[366442430,1750257061571,-1069.11,0.00017424,2]
[366442431,1750257061581,-513.47,0.00017424,2]
[366442432,1750257061592,-473.9339766,0.00017424,2]
[366442433,1750257061602,-567.01,0.00017424,2]
[366442434,1750257061611,-1198.12,0.00017424,2]
[366442435,1750257061621,-490.0,0.00017424,2]
[366442436,1750257061631,-632.91,0.00017424,2]
[366442437,1750257061641,-1129.76,0.00017424,2]
[366442438,1750257061651,-1414.45,0.00017424,2]
[366442439,1750257061663,-490.0,0.00017424,2]
[366442440,1750257061673,-490.0,0.00017424,2]
[366442441,1750257061682,-161.56208367,0.00017434,2]
[366442442,1750257061692,-10626.1494076,0.00017452,2]
[366442443,1750257061701,-168.0,0.00017461,2]
[366442444,1750257061710,-548.82888064,0.00017473,2]
[366442445,1750257061720,-500.0,0.00017473,2]
[366442446,1750257061729,-500.0,0.00017473,2]
[366442447,1750257061739,-322.44831559,0.00017473,2]
[366442448,1750257061749,-500.0,0.00017473,2]
[366442449,1750257061761,-500.0,0.00017473,2]
[366442450,1750257061771,-159.93564001,0.00017473,2]
[366442451,1750257061781,-160.11466179,0.00017473,2]
[366442452,1750257061791,-360.87053316,0.00017473,2]
[366442453,1750257061801,-198.55258671,0.00017473,2]
[366442454,1750257061811,-160.11454461,0.00017473,2]
[366442455,1750257061821,-160.11282226,0.00017473,2]
[366442456,1750257061831,-160.07754033,0.00017473,2]
[366442457,1750257061841,-500.0,0.00017473,2]
[366442458,1750257061851,-160.11253353,0.00017473,2]
[366442459,1750257061861,-160.10906648,0.00017473,2]
[366442460,1750257061871,-160.11347291,0.00017473,2]
[366442461,1750257061882,-200.0,0.00017479,2]
[366442462,1750257061891,-343.04804546,0.00017489,3]
[366442463,1750257061898,-196.89492744,0.00017492,2]
[366442464,1750257061907,-566575.44,0.000175,2]
[366442465,1750257061914,-337.68948704,0.000175,2]
[366442466,1750257061924,-55567.38853205,0.000175,3]
[366442467,1750257061934,-500.0,0.000175,5]
[366442468,1750257061944,-600.0,0.000175,3]
[366442469,1750257061954,-833.92080167,0.000175,3]
[366442470,1750257061964,-232353.0573674,0.000175,2]
[366442471,1750257061980,-346851.98715688,0.000175,2]
[366442472,1750257061990,-168.0,0.00017512,2]
[366442473,1750257061999,-1000.0,0.00017521,2]
[366442474,1750257062014,-1000.0,0.00017521,2]
[366442475,1750257062024,-10626.1494076,0.00017525,2]
[366442476,1750257062034,-11109.06329289,0.00017528,2]
[366442477,1750257062044,-302.0,0.00017551,2]
[366442478,1750257062055,-513.0,0.0001756,2]
[366442479,1750257062065,-579.22504047,0.00017568,2]
[366442480,1750257062075,-500.0,0.00017573,2]
[366442481,1750257062086,-500.10041679,0.00017573,2]
[366442482,1750257062096,-500.0,0.00017573,2]
[366442483,1750257062107,-500.0,0.00017573,2]
[366442484,1750257062117,-500.0,0.00017573,2]
[366442485,1750257062128,-160.05180811,0.00017573,2]
[366442486,1750257062138,-500.0,0.00017573,2]
[366442487,1750257062148,-500.0,0.00017573,2]
[366442488,1750257062158,-500.0,0.00017573,2]
[366442489,1750257062169,-452.4821536,0.00017573,2]
[366442490,1750257062179,-272.84982887,0.00017573,2]
[366442491,1750257062190,-260.50892099,0.00017573,2]
[366442492,1750257062200,-500.0,0.00017573,2]
[366442493,1750257062210,-160.08680368,0.00017573,2]
[366442494,1750257062220,-212.76940668,0.00017573,2]
[366442495,1750257062230,-502.82104522,0.00017573,2]
[366442496,1750257062240,-500.0,0.00017573,2]
[366442497,1750257062250,-500.0,0.00017573,2]
[366442498,1750257062265,-500.232718,0.00017573,2]
[366442499,1750257062275,-500.0,0.00017573,2]
[366442500,1750257062286,-500.0,0.00017573,2]
[366442501,1750257062296,-160.10947799,0.00017573,2]
[366442502,1750257062306,-500.0,0.00017573,2]
[366442503,1750257062316,-500.0,0.00017573,2]
[366442504,1750257062327,-163.22398192,0.00017573,2]
[366442505,1750257062337,-500.1520469,0.00017573,2]
[366442506,1750257062347,-500.0,0.00017573,2]
[366442507,1750257062356,-500.09880269,0.00017573,2]
[366442508,1750257062366,-163.88014992,0.00017573,2]
[366442509,1750257062376,-500.0,0.00017573,2]
[366442510,1750257062386,-500.15235083,0.00017573,2]
[366442511,1750257062396,-333.2859619,0.00017573,2]
[366442512,1750257062408,-500.0,0.00017573,2]
[366442513,1750257062419,-321.59946982,0.00017573,2]
[366442514,1750257062429,-400.15493929,0.00017573,2]
[366442515,1750257062440,-160.11090775,0.00017573,2]
[366442516,1750257062451,-512.99019753,0.00017573,2]
[366442517,1750257062461,-505.90213474,0.00017573,2]
[366442518,1750257062470,-500.0,0.00017573,2]
[366442519,1750257062480,-490.0,0.00017589,2]
[366442520,1750257062489,-686.14,0.00017589,2]
[366442521,1750257062500,-551.49,0.00017589,2]
[366442522,1750257062513,-777.25,0.00017589,2]
[366442523,1750257062523,-490.0,0.00017589,2]
[366442524,1750257062534,-518.54,0.00017589,2]
[366442525,1750257062545,-560.09,0.00017589,2]
[366442526,1750257062555,-285.76,0.00017589,2]
[366442527,1750257062565,-490.0,0.00017589,2]
[366442528,1750257062575,-490.0,0.00017589,2]
[366442529,1750257062587,-490.0,0.00017589,2]
[366442530,1750257062598,-300.0,0.00017589,2]
[366442531,1750257062608,-490.0,0.00017589,2]
[366442532,1750257062619,-490.0,0.00017589,2]
[366442533,1750257062629,-490.0,0.00017589,2]
[366442534,1750257062640,-781.86,0.00017589,2]
[366442535,1750257062650,-492.72,0.00017589,2]
[366442536,1750257062659,-490.0,0.00017589,2]
[366442537,1750257062669,-519.56,0.00017589,2]
[366442538,1750257062679,-490.0,0.00017589,2]
[366442539,1750257062689,-523.43,0.00017589,2]
[366442540,1750257062699,-990.9,0.00017589,2]
[366442541,1750257062709,-490.0,0.00017589,2]
[366442542,1750257062719,-490.0,0.00017589,2]
[366442543,1750257062729,-490.0,0.00017589,2]
[366442544,1750257062740,-538.02,0.00017589,2]
[366442545,1750257062750,-763.15,0.00017589,2]
[366442546,1750257062765,-490.0,0.00017589,2]
[366442547,1750257062775,-1338.65,0.00017589,2]
[366442548,1750257062786,-613.29,0.00017589,2]
[366442549,1750257062797,-490.0,0.00017589,2]
[366442550,1750257062808,-743.18,0.00017589,2]
[366442551,1750257062818,-490.0,0.00017589,2]
[366442552,1750257062828,-490.0,0.00017589,2]
[366442553,1750257062838,-233.89621106,0.00017589,2]
[366442554,1750257062848,-706.15,0.00017589,2]
[366442555,1750257062858,-490.0,0.00017589,2]
[366442556,1750257062868,-490.0,0.00017589,2]
[366442557,1750257062878,-490.0,0.00017589,2]
[366442558,1750257062888,-551.76,0.00017589,2]
[366442559,1750257062898,-490.0,0.00017589,2]
[366442560,1750257062908,-151.0,0.00017589,2]
[366442561,1750257062918,-151.0,0.00017589,2]
[366442562,1750257062929,-192.13282865,0.00017589,2]
[366442563,1750257062938,-546.08,0.00017589,2]
[366442564,1750257062948,-490.0,0.00017589,2]
[366442565,1750257062959,-658.72,0.00017589,2]
[366442566,1750257062969,-490.0,0.00017589,2]
[366442567,1750257062979,-490.0,0.00017589,2]
[366442568,1750257062989,-490.0,0.00017589,2]
[366442569,1750257062998,-490.0,0.00017589,2]
[366442570,1750257063011,-533.74,0.00017589,2]
[366442571,1750257063022,-537.42086321,0.00017589,2]
[366442572,1750257063032,-490.0,0.00017589,2]
[366442573,1750257063042,-490.0,0.00017589,2]
[366442574,1750257063053,-490.0,0.00017589,2]
[366442575,1750257063065,-490.0,0.00017589,2]
[366442576,1750257063075,-871.98,0.00017589,2]
[366442577,1750257063086,-490.0,0.00017589,2]
[366442578,1750257063097,-490.0,0.00017589,2]
[366442579,1750257063109,-215.64409875,0.00017589,2]
[366442580,1750257063119,-584.75,0.00017589,2]
[366442581,1750257063130,-589.43,0.00017589,2]
[366442582,1750257063140,-490.0,0.00017589,2]
[366442583,1750257063151,-908.44,0.00017589,2]
[366442584,1750257063161,-490.13,0.00017589,2]
[366442585,1750257063172,-490.0,0.00017589,2]
[366442586,1750257063182,-490.0,0.00017589,2]
[366442587,1750257063193,-490.0,0.00017589,2]
[366442588,1750257063203,-490.0,0.00017589,2]
[366442589,1750257063213,-670.85,0.00017589,2]
[366442590,1750257063223,-490.0,0.00017589,2]
[366442591,1750257063233,-594.25,0.00017589,2]
[366442592,1750257063244,-490.0,0.00017589,2]
[366442593,1750257063256,-674.18,0.00017589,2]
[366442594,1750257063266,-562.72,0.00017589,2]
[366442595,1750257063277,-581.59,0.00017589,2]
[366442596,1750257063287,-571.73,0.00017589,2]
[366442597,1750257063297,-490.0,0.00017589,2]
[366442598,1750257063307,-512.65,0.00017589,2]
[366442599,1750257063316,-578.22,0.00017589,2]
[366442600,1750257063326,-502.22,0.00017589,2]
[366442601,1750257063337,-535.71,0.00017589,2]
[366442602,1750257063347,-490.0,0.00017589,2]
[366442603,1750257063357,-528.62,0.00017589,2]
[366442604,1750257063368,-490.0,0.00017589,2]
[366442605,1750257063379,-490.0,0.00017589,2]
[366442606,1750257063389,-761.74,0.00017589,2]
[366442607,1750257063399,-549.14,0.00017589,2]
[366442608,1750257063409,-711.34,0.00017589,2]
[366442609,1750257063423,-1157.46,0.00017589,2]
[366442610,1750257063433,-490.0,0.00017589,2]
[366442611,1750257063443,-1138.45,0.00017589,2]
[366442612,1750257063454,-574.18,0.00017589,2]
[366442613,1750257063464,-490.0,0.00017589,2]
[366442614,1750257063475,-490.0,0.00017589,2]
[366442615,1750257063485,-697.93,0.00017589,2]
[366442616,1750257063495,-1306.71,0.00017589,2]
[366442617,1750257063507,-490.0,0.00017589,2]
[366442618,1750257063516,-513.85,0.00017589,2]
[366442619,1750257063526,-490.0,0.00017589,2]
[366442620,1750257063537,-1490.15,0.00017589,2]
[366442621,1750257063548,-1470.31,0.00017589,2]
[366442622,1750257063557,-714.69,0.00017589,2]
[366442623,1750257063567,-650.64,0.00017589,2]
[366442624,1750257063577,-1055.17,0.00017589,2]
[366442625,1750257063587,-490.0,0.00017589,2]
[366442626,1750257063597,-938.74,0.00017589,2]
[366442627,1750257063607,-746.58,0.00017589,2]
[366442628,1750257063617,-752.12,0.00017589,2]
[366442629,1750257063628,-615.79,0.00017589,2]
[366442630,1750257063638,-1184.09,0.00017589,2]
[366442631,1750257063648,-490.0,0.00017589,2]
[366442632,1750257063658,-595.15,0.00017589,2]
[366442633,1750257063668,-546.89,0.00017589,2]
[366442634,1750257063678,-892.68,0.00017589,2]
[366442635,1750257063688,-662.92,0.00017589,2]
[366442636,1750257063698,-490.0,0.00017589,2]
[366442637,1750257063709,-784.12,0.00017589,2]
[366442638,1750257063786,-1398.48,0.00017589,2]
[366442639,1750257063797,-1387.74,0.00017589,2]
[366442640,1750257063808,-1002.15,0.00017589,2]
[366442641,1750257063819,-562.5,0.00017589,2]
[366442642,1750257063829,-490.0,0.00017589,2]
[366442643,1750257063840,-1114.11,0.00017589,2]
[366442644,1750257063850,-1158.83,0.00017589,2]
[366442645,1750257063861,-490.0,0.00017589,2]
[366442646,1750257063871,-1123.05,0.00017589,2]
[366442647,1750257063882,-490.0,0.00017589,2]
[366442648,1750257063892,-585.81,0.00017589,2]
[366442649,1750257063902,-512.44,0.00017589,2]
[366442650,1750257063911,-529.92,0.00017589,2]
[366442651,1750257063921,-619.01,0.00017589,2]
[366442652,1750257063930,-490.0,0.00017589,2]
[366442653,1750257063940,-511.25,0.00017589,2]
[366442654,1750257063951,-490.0,0.00017589,2]
[366442655,1750257063961,-690.3,0.00017589,2]
[366442656,1750257063971,-1117.61,0.00017589,2]
[366442657,1750257063982,-1128.49,0.00017589,2]
[366442658,1750257063992,-490.0,0.00017589,2]
[366442659,1750257064002,-490.0,0.00017589,2]
[366442660,1750257064017,-490.0,0.00017589,2]
[366442661,1750257064027,-1499.37,0.00017589,2]
[366442662,1750257064037,-705.99,0.00017589,2]
[366442663,1750257064047,-1251.05,0.00017589,2]
[366442664,1750257064057,-770.06,0.00017589,2]
[366442665,1750257064067,-490.0,0.00017589,2]
[366442666,1750257064077,-1149.1,0.00017589,2]
[366442667,1750257064087,-607.32,0.00017589,2]
[366442668,1750257064097,-697.95,0.00017589,2]
[366442669,1750257064107,-490.0,0.00017589,2]
[366442670,1750257064117,-951.45,0.00017589,2]
[366442671,1750257064128,-1246.97,0.00017589,2]
[366442672,1750257064138,-490.0,0.00017589,2]
[366442673,1750257064148,-379.56899883,0.00017589,2]
[366442674,1750257064158,-704.38,0.00017589,2]
[366442675,1750257064168,-718.12,0.00017589,2]
[366442676,1750257064179,-783.15,0.00017589,2]
[366442677,1750257064189,-897.47,0.00017589,2]
[366442678,1750257064199,-490.0,0.00017589,2]